fUSD/lending_fUSD_20240702
["ID","MTS","AMOUNT","RATE_DAILY","PERIOD"]
[330882395,1719893437805,-380.32591715,0.00014099,2]
[330882396,1719893437815,-154.36,0.00014161,2]
[330882397,1719893437824,-1454.87,0.00014384,2]
[330882398,1719893437833,-367.19,0.00014385,2]
[330882399,1719893437842,-155.39140516,0.00014393,2]
[330882400,1719893437852,-1903.03082168,0.00014499,2]
[330882401,1719893437861,-400.0,0.000146,5]
[330882402,1719893437871,-4798.3702,0.000147,2]
[330882403,1719893437880,-800.0,0.000147,5]
[330882404,1719893437889,-9824.75141019,0.00014708,2]
[330882405,1719893437899,-60454.42343157,0.000148,2]
[330882406,1719893437908,-1300.0,0.000148,5]
[330882407,1719893437918,-172.85,0.00014808,2]
[330882408,1719893437927,-150.62302,0.0001485,2]
[330882409,1719893437936,-100000.0,0.000149,2]
[330882410,1719893437946,-234.69054935,0.000149,2]
[330882411,1719893437955,-179.11281343,0.000149,2]
[330882412,1719893437964,-174.56786522,0.000149,2]
[330882413,1719893437973,-35333.16909654,0.000149,2]
[330882414,1719893437983,-5000.539599,0.000149,2]
[330882415,1719893437992,-222.39746096,0.000149,2]
[330882416,1719893438001,-1700.0,0.000149,5]
[330882417,1719893438011,-1123.22343272,0.000149,2]
[330882418,1719893438020,-185.5265701,0.000149,2]
[330882419,1719893438036,-320.3570013,0.000149,2]
[330882420,1719893438051,-193.1682026,0.000149,2]
[330882421,1719893438061,-204.23794938,0.000149,2]
[330882422,1719893438071,-8412.34480996,0.000149,2]
[330882423,1719893438082,-225.51,0.00014904,2]
[330882424,1719893438092,-150.5,0.0001497,7]
[330882425,1719893438102,-264.56470044,0.00014973,2]
[330882426,1719893438112,-264.56470044,0.00014973,2]
[330882427,1719893438121,-196.41369686,0.00014973,2]
[330882428,1719893438131,-150.5,0.0001498,7]
[330882429,1719893438141,-154.29818798,0.00014986,2]
[330882430,1719893438150,-150.5,0.0001499,7]
[330882431,1719893438160,-219.66725372,0.0001499,2]
[330882432,1719893438169,-219.66725372,0.0001499,2]
[330882433,1719893438179,-500.0,0.00014999,2]
[330882434,1719893438188,-500.0,0.00014999,2]
[330882435,1719893438199,-372.12633035,0.00014999,2]
[330882436,1719893438210,-479.03337289,0.00014999,2]
[330882437,1719893438220,-269.24253839,0.00014999,2]
[330882438,1719893438230,-500.0,0.00014999,2]
[330882439,1719893438240,-168.73662342,0.00014999,2]
[330882440,1719893438250,-159.482713,0.00014999,2]
[330882441,1719893438260,-150.0,0.00014999,2]
[330882442,1719893438269,-300.0,0.00014999,2]
[330882443,1719893438279,-300.0,0.00014999,2]
[330882444,1719893438289,-1412216.44392352,0.00015,2]
[330882445,1719893438530,-309707.37053182,0.00015,2]
[330882446,1719893438542,-650.84765446,0.00015,2]
[330882447,1719893438554,-6473.65295,0.00015,2]
[330882448,1719893438565,-6516.51,0.00015,2]
[330882449,1719893438581,-30628.2169898,0.00015,2]
[330882450,1719893438592,-1428.6939497,0.00015,2]
[330882451,1719893438608,-2448.42382749,0.00015,2]
[330882452,1719893438623,-2779.7737098,0.00015,2]
[330882453,1719893439560,-5348.04718558,0.00015,2]
[330882455,1719893439910,-162218.2589662,0.00015,2]
[330882456,1719893439974,-348.1758051,0.00015,2]
[330882457,1719893440091,-2326.50000047,0.00015,2]
[330882458,1719893440151,-534.27248411,0.00015,2]
[330882459,1719893440164,-1995.73214942,0.00015,2]
[330882460,1719893440209,-1563.63622335,0.00015,2]
[330882461,1719893440220,-744.63634586,0.00015,2]
[330882483,1719893445490,-375.93228978,0.00015,2]
[330882484,1719893445601,-21726.01177117,0.00015,2]
[330882554,1719893699074,1903.03082168,0.00011199,2]
[330882556,1719893879884,324.59202179,0.00011199,2]
[330882557,1719893897896,227.09542874,0.00011199,2]
[330882558,1719894122063,1270.37297567,0.00011199,2]
[330882559,1719894329937,227.09542874,0.00011199,2]
[330882560,1719894349136,520.56613512,0.00011199,2]
[330882563,1719894511334,276.54348187,0.00011199,2]
[330882564,1719894514897,155.0,0.00011199,2]
[330882565,1719894551173,-247.51941267,0.00011766,2]
[330882581,1719894631606,-641.65100367,0.00011766,2]
[330882582,1719894631615,-155.2571795,0.00011766,2]
[330882583,1719894631625,-520.59058733,0.00011766,2]
[330882584,1719894631634,-227.09542874,0.00013128,2]
[330882585,1719894631644,-1168.2980104,0.00013516,2]
[330882586,1719894631655,-250.0,0.00013543,2]
[330882587,1719894631665,-167.68,0.00013549,2]
[330882588,1719894631674,-250.0,0.00013569,2]
[330882589,1719894631683,-153.86,0.00013656,2]
[330882590,1719894631695,-153.86,0.0001369,2]
[330882591,1719894631704,-1500.0,0.00013699,5]
[330882592,1719894631713,-859.29,0.00013699,2]
[330882593,1719894631726,-153.86,0.00013725,2]
[330882594,1719894631736,-126.75779036,0.00013773,2]
[330882595,1719894631815,-273.24220964,0.00013773,2]
[330882596,1719894631825,-300.0,0.00013814,2]
[330882597,1719894631834,-170.03308351,0.00013815,2]
[330882601,1719894637563,-520.2073506,0.00012314,2]
[330882602,1719894637572,-155.12352452,0.00013516,2]
[330882603,1719894637582,-9829.96691649,0.00013815,2]
[330882604,1719894637592,-200.0,0.00013831,2]
[330882605,1719894637601,-2231.79207233,0.00013836,2]
[330882606,1719894637638,-519.20792767,0.00013836,2]
[330882607,1719894637648,-872.92,0.00013914,2]
[330882608,1719894637658,-768.11,0.0001403,2]
[330882609,1719894637668,-872.92,0.0001461,2]
[330882610,1719894637677,-270.62,0.00014696,2]
[330882611,1719894637687,-150.0,0.00014727,2]
[330882612,1719894637699,-150.0,0.00014741,2]
[330882613,1719894637711,-150.0,0.00014741,2]
[330882614,1719894637720,-150.0,0.00014782,2]
[330882615,1719894637730,-150.0,0.00014784,2]
[330882616,1719894637740,-150.0,0.00014786,2]
[330882617,1719894637749,-150.0,0.00014795,2]
[330882618,1719894637759,-54408.98108835,0.000148,2]
[330882619,1719894637768,-150.0,0.00014818,2]
[330882620,1719894637778,-150.0,0.00014822,2]
[330882621,1719894637787,-177.37053917,0.00014842,2]
[330882622,1719894637797,-150.0,0.00014843,2]
[330882623,1719894637807,-150.0,0.00014854,2]
[330882624,1719894637817,-500.0,0.0001488,2]
[330882625,1719894637827,-150.0,0.00014885,2]
[330882626,1719894637836,-150.0,0.00014895,2]
[330882627,1719894637845,-1903.03082168,0.00014899,2]
[330882628,1719894637855,-24640.726647,0.000149,2]
[330882629,1719894637865,-39467.7848,0.000149,2]
[330882630,1719894637875,-100000.0,0.000149,2]
[330882631,1719894637884,-187.75243948,0.000149,2]
[330882632,1719894637894,-153.52526868,0.000149,2]
[330882633,1719894637903,-32388.73833855,0.000149,2]
[330882634,1719894637912,-320.3570012,0.000149,2]
[330882635,1719894637921,-172.85,0.00014903,2]
[330882636,1719894637931,-150.0,0.00014913,2]
[330882637,1719894637941,-150.0,0.00014924,2]
[330882638,1719894637953,-1000.0,0.0001495,2]
[330882639,1719894637962,-150.0,0.00014952,2]
[330882640,1719894637972,-209.7635483,0.00014999,2]
[330882641,1719894637982,-5919.74692949,0.00014999,2]
[330882642,1719894637991,-42552.96518225,0.00015,2]
[330882643,1719894638008,-25961.53992857,0.00015,2]
[330882644,1719894638020,-266025.14562073,0.00015,2]
[330882645,1719894638041,-1241.73529234,0.00015,2]
[330882680,1719894640485,-4507.00377898,0.00014999,2]
[330882681,1719894640498,-1412.74315051,0.00014999,2]
[330882682,1719894640508,-342.6324761,0.00015,2]
[330882683,1719894640520,-524.14121069,0.00015,2]
[330882698,1719894642778,-1525.98186201,0.00015,2]
[330882699,1719894642790,-582.5254763,0.00015,2]
[330882700,1719894642868,-422.7159626,0.00015,2]
[330882717,1719894645799,-1168.2980104,0.00013472,2]
[330882718,1719894645809,-209.7635483,0.00014999,2]
[330882719,1719894645819,-1771.9384413,0.00014999,2]
[330882720,1719894645882,-691.60000005,0.00014999,2]
[330882734,1719894646227,-918.41629221,0.00014999,2]
[330882754,1719894835778,513.0,0.0002208,120]
[330882757,1719895124446,2596.2168724,0.00011199,2]
[330882758,1719895178875,2493.38298312,0.00011199,2]
[330882759,1719895181713,1231.57582278,0.00011199,2]
[330882760,1719895228754,160.08509733,0.00011199,2]
[330882761,1719895234856,7708.54035237,0.00011199,2]
[330882763,1719895294149,641.65100367,0.00011199,2]
[330882764,1719895385163,1231.57582278,0.00011199,2]
[330882769,1719895458846,883.89,0.00010743,2]
[330882770,1719895482515,466.76010482,0.00011199,2]
[330882771,1719895511224,641.65100367,0.00011199,2]
[330882772,1719895514156,155.05409284,0.00011199,2]
[330882773,1719895514206,155.24723481,0.00011199,2]
[330882775,1719895543994,493.4705516,0.00011199,2]
[330882776,1719895565366,253.97336571,0.00011199,2]
[330882777,1719895576234,157.02434713,0.00011199,2]
[330882778,1719895616216,641.65100367,0.00011199,2]
[330882779,1719895626897,155.68805516,0.00011199,2]
[330882780,1719895699689,641.65100367,0.00011199,2]
[330882781,1719895709846,156.28834233,0.00011199,2]
[330882782,1719895714695,641.65100367,0.00011199,2]
[330882783,1719895723616,237.15398953,0.00011199,2]
[330882784,1719895771135,-329.93991412,0.0001133,2]
[330882792,1719895831769,-1629.06008588,0.0001133,2]
[330882793,1719895831780,-641.65100367,0.0001133,2]
[330882794,1719895831789,-155.05946444,0.00011566,2]
[330882795,1719895831799,-155.56133012,0.00012314,2]
[330882796,1719895831808,-167.7,0.00012584,2]
[330882797,1719895831817,-3036.65,0.00012592,2]
[330882798,1719895831826,-250.0,0.00012594,2]
[330882799,1719895831836,-154.29818798,0.000126,2]
[330882801,1719895831844,-500.0,0.00012636,2]
[330882803,1719895831854,-566.64,0.00012655,2]
[330882805,1719895831863,-250.0,0.00012694,2]
[330882807,1719895831872,-154.36,0.00012718,2]
[330882809,1719895831882,-150.0,0.00012747,2]
[330882810,1719895831893,-270.62,0.00012856,2]
[330882811,1719895831902,-150.0,0.00012856,2]
[330882812,1719895831913,-169.9,0.00012882,2]
[330882813,1719895831922,-883.89,0.00013007,2]
[330882814,1719895831931,-154.36,0.00013049,2]
[330882815,1719895831940,-154.36,0.00013381,2]
[330882816,1719895831949,-308.12292157,0.00013516,2]
[330882817,1719895831959,-175.82883922,0.00013548,2]
[330882818,1719895831971,-124.17116078,0.00013548,2]
[330882819,1719895831982,-172.38891752,0.00013549,2]
[330882820,1719895831993,-827.61108248,0.00013549,2]
[330882821,1719895832002,-251.0,0.00013584,2]
[330882822,1719895832012,-102.81359996,0.000136,4]
[330882823,1719895832023,-297.18640004,0.000136,4]
[330882824,1719895832034,-1168.57,0.00013699,2]
[330882825,1719895832045,-901.06788035,0.00013699,2]
[330882826,1719895832058,-365.23211965,0.00013699,2]
[330882827,1719895832069,-429.64,0.00013699,2]
[330882828,1719895832079,-1253.08,0.00013699,2]
[330882829,1719895832089,-800.0,0.000137,5]
[330882830,1719895832100,-5597.5405427,0.00013736,2]
[330882831,1719895832110,-196.41369686,0.00013736,2]
[330882832,1719895832119,-264.56470044,0.00013759,2]
[330882833,1719895832129,-1300.0,0.000138,5]
[330882834,1719895832138,-1232.85205701,0.0001387,2]
[330882836,1719895832148,-220.33,0.0001389,2]
[330882837,1719895832157,-3818.70109817,0.00013896,2]
[330882838,1719895832167,-239.5842,0.00013899,2]
[330882840,1719895832176,-4798.3702,0.000139,2]
[330882842,1719895832185,-1700.0,0.000139,5]
[330882843,1719895832196,-234.69054935,0.00013906,2]
[330882845,1719895832205,-174.56786522,0.00013906,2]
[330882847,1719895832214,-179.11281343,0.00013906,2]
[330882849,1719895832223,-39303.13666913,0.00013906,2]
[330882851,1719895832231,-222.39746096,0.00013906,2]
[330882853,1719895832241,-628.83343938,0.00013906,2]
[330882854,1719895832251,-80000.00733794,0.00013906,2]
[330882855,1719895832260,-922.4944912,0.00013906,2]
[330882856,1719895832270,-278.28985516,0.00013906,2]
[330882858,1719895832279,-204.23794938,0.00013906,2]
[330882859,1719895832288,-1188.73711581,0.00013906,2]
[330882861,1719895832297,-320.3570013,0.00013906,2]
[330882863,1719895832306,-12618.51721494,0.00013906,2]
[330882864,1719895832316,-172.85,0.00013943,2]
[330882865,1719895832326,-150.5,0.0001397,7]
[330882866,1719895832337,-150.5,0.0001398,7]
[330882867,1719895832348,-150.5,0.0001399,7]
[330882868,1719895832357,-351.38490174,0.0001399,2]
[330882869,1719895832368,-351.38490174,0.0001399,2]
[330882870,1719895832378,-644.68574267,0.00013999,2]
[330882871,1719895832388,-500.0,0.00013999,2]
[330882872,1719895832398,-522.98348443,0.00013999,2]
[330882873,1719895832407,-500.0,0.00013999,2]
[330882874,1719895832418,-500.0,0.00013999,2]
[330882875,1719895832427,-584.0218751,0.00013999,2]
[330882876,1719895832436,-500.0,0.00013999,2]
[330882877,1719895832447,-500.0,0.00013999,2]
[330882878,1719895832456,-500.0,0.00013999,2]
[330882879,1719895832465,-375.84182149,0.00013999,2]
[330882880,1719895832474,-500.0,0.00013999,2]
[330882881,1719895832483,-380.45571101,0.00013999,2]
[330882882,1719895832493,-350.0,0.00013999,2]
[330882883,1719895832501,-500.0,0.00013999,2]
[330882884,1719895832511,-443.07465809,0.00013999,2]
[330882885,1719895832524,-183.6860836,0.00013999,2]
[330882886,1719895832533,-164.9841047,0.00013999,2]
[330882887,1719895832542,-500.0,0.00013999,2]
[330882888,1719895832551,-200.0,0.00013999,2]
[330882889,1719895832560,-500.0,0.00013999,2]
[330882890,1719895832569,-227.45326176,0.00013999,2]
[330882891,1719895832578,-500.0,0.00013999,2]
[330882892,1719895832588,-500.0,0.00013999,2]
[330882893,1719895832599,-425.22011272,0.00013999,2]
[330882894,1719895832608,-500.0,0.00013999,2]
[330882895,1719895832617,-268.92233011,0.00013999,2]
[330882896,1719895832626,-2666.37893822,0.00013999,2]
[330882897,1719895832635,-150.0,0.00013999,2]
[330882898,1719895832644,-762.31393755,0.00014,2]
[330882899,1719895832656,-4121.07153573,0.00014,2]
[330882900,1719895832668,-23671.86406433,0.00014,2]
[330882901,1719895832679,-1133.16129937,0.00014,2]
[330882902,1719895832689,-14418.30152426,0.00014,2]
[330882903,1719895832700,-5409.28786295,0.00014,2]
[330882904,1719895832712,-1433.40272696,0.00014,2]
[330882905,1719895832723,-10916.93811078,0.00014,2]
[330882906,1719895832734,-12182.78132822,0.00014,2]
[330882907,1719895832745,-138233.15503492,0.00014,2]
[330882908,1719895832756,-1103.55713475,0.00014,2]
[330882909,1719895832767,-518.40021227,0.00014,2]
[330882910,1719895832783,-1232.82777441,0.00014,2]
[330882911,1719895832796,-4384.90963218,0.00014,2]
[330882912,1719895832807,-699.70135202,0.00014,2]
[330882913,1719895832822,-574.25050338,0.00014,2]
[330882914,1719895832833,-288.51537332,0.00014,2]
[330882915,1719895832848,-402.53859853,0.00014,2]
[330882916,1719895832859,-1301.70501587,0.00014,2]
[330882917,1719895832871,-565.09049799,0.00014,2]
[330882918,1719895832881,-1421.18809713,0.00014,2]
[330882919,1719895832893,-558.15546194,0.00014,2]
[330882920,1719895832904,-1266.60175907,0.00014,2]
[330882921,1719895832914,-1916.80238943,0.00014,2]
[330882922,1719895832925,-1506.26770272,0.00014,2]
[330882923,1719895832936,-706.07482364,0.00014,2]
[330882924,1719895832947,-833.88090413,0.00014,2]
[330882945,1719895837781,-264.56470044,0.00013736,2]
[330882947,1719895837791,-2571.39464962,0.00014,2]
[330882949,1719895837802,-1189.99134495,0.00014,2]
[330882951,1719895837815,-2248904.29492811,0.00014,2]
[330882953,1719895837824,-500.0,0.00014006,2]
[330882955,1719895837834,-500.0,0.00014006,2]
[330882957,1719895837844,-500.0,0.0001428,2]
[330882959,1719895837853,-1266.3,0.00014384,2]
[330882961,1719895837863,-200.0,0.00014426,2]
[330882963,1719895837872,-320.3570012,0.00014513,2]
[330882965,1719895837882,-423.09670834,0.00014624,2]
[330882967,1719895837892,-400.62434463,0.00014667,2]
[330882969,1719895837901,-39303.13666903,0.00014678,2]
[330882971,1719895837911,-80000.00733791,0.00014694,2]
[330882972,1719895837921,-2100.0,0.000147,5]
[330882974,1719895837931,-150.0,0.00014727,2]
[330882976,1719895837943,-150.0,0.00014736,2]
[330882978,1719895837953,-150.0,0.00014755,2]
[330882979,1719895837963,-177.37053917,0.00014767,2]
[330882980,1719895837973,-150.0,0.00014797,2]
[330882981,1719895837982,-9048.704,0.000148,2]
[330882982,1719895837992,-175.188,0.000148,2]
[330882983,1719895838002,-67141.076,0.000148,2]
[330882984,1719895838011,-1281.8936,0.000148,2]
[330882985,1719895838020,-400.0,0.000148,5]
[330882986,1719895838029,-150.0,0.00014803,2]
[330882987,1719895838039,-150.0,0.00014806,2]
[330882988,1719895838048,-150.0,0.00014813,2]
[330882989,1719895838058,-150.0,0.00014816,2]
[330882990,1719895838067,-2209.42845299,0.00014849,2]
[330882991,1719895838076,-150.62302,0.0001485,2]
[330882992,1719895838088,-1796.06656,0.0001485,2]
[330882993,1719895838098,-1796.06655,0.0001485,2]
[330882994,1719895838108,-420.0,0.0001485,2]
[330882995,1719895838118,-150.0,0.00014858,2]
[330882996,1719895838127,-150.0,0.0001487,2]
[330882997,1719895838136,-150.0,0.00014873,2]
[330882998,1719895838146,-150.0,0.00014876,2]
[330882999,1719895838156,-500.0,0.0001488,2]
[330883000,1719895838166,-3071.06619753,0.00014899,2]
[330883001,1719895838176,-24640.726647,0.000149,2]
[330883002,1719895838186,-4764.8295,0.000149,2]
[330883004,1719895838195,-10087.9988,0.000149,2]
[330883006,1719895838205,-835.0,0.000149,2]
[330883008,1719895838215,-400.0,0.000149,5]
[330883010,1719895838225,-225.51,0.00014904,3]
[330883011,1719895838236,-150.0,0.00014947,2]
[330883012,1719895838246,-150.0,0.00014948,2]
[330883013,1719895838255,-150.0,0.00014967,2]
[330883014,1719895838265,-150.0,0.00014975,2]
[330883015,1719895838275,-10246.5147709,0.00014989,2]
[330883016,1719895838285,-3694.406293,0.00014989,2]
[330883017,1719895838295,-3067.2035302,0.0001499,2]
[330883019,1719895838305,-2440.0007673,0.0001499,2]
[330883020,1719895838314,-351.38490174,0.0001499,2]
[330883021,1719895838324,-150.0,0.00014997,2]
[330883022,1719895838334,-209.7635483,0.00014999,2]
[330883023,1719895838343,-5919.74692949,0.00014999,2]
[330883024,1719895838353,-1000.0,0.00014999,2]
[330883025,1719895838620,-1000.0,0.00014999,2]
[330883026,1719895838631,-1000.0,0.00014999,2]
[330883027,1719895838640,-1000.0,0.00014999,2]
[330883028,1719895838650,-1098.01873342,0.00014999,2]
[330883029,1719895838659,-150.0,0.00014999,7]
[330883030,1719895838671,-168.59133221,0.00014999,7]
[330883031,1719895838681,-300.0,0.00014999,2]
[330883032,1719895838691,-300.0,0.00014999,2]
[330883033,1719895838703,-636197.38072484,0.00015,2]
[330883034,1719895838713,-10348.49127771,0.00015,2]
[330883035,1719895838722,-5000.0,0.00015,2]
[330883036,1719895838732,-24643.95852302,0.00015,2]
[330883037,1719895838742,-3968.79438035,0.00015,2]
[330883038,1719895838751,-622.93075988,0.00015,2]
[330883039,1719895838760,-423074.44076717,0.00015,2]
[330883040,1719895838774,-309707.37053182,0.00015,2]
[330883041,1719895838785,-6014.02367872,0.00015,2]
[330883042,1719895838796,-16592.60688411,0.00015,2]
[330883043,1719895838808,-4791.20233992,0.00015,2]
[330883044,1719895838856,-319.15179983,0.00015,2]
[330883045,1719895838868,-556.34975306,0.00015,2]
[330883046,1719895838880,-1340.01178555,0.00015,2]
[330883047,1719895838891,-459.2308478,0.00015,2]
[330883048,1719895838903,-980.81520194,0.00015,2]
[330883049,1719895838914,-3511.99297866,0.00015,2]
[330883050,1719895839108,-24502.52742625,0.00015,2]
[330883051,1719895839125,-12163.00767861,0.00015,2]
[330883052,1719895839138,-420.25335452,0.00015,2]
[330883053,1719895839151,-622.83715495,0.00015,2]
[330883054,1719895839164,-2861.06858955,0.00015,2]
[330883055,1719895839179,-609.55481835,0.00015,2]
[330883056,1719895839195,-1485.99999982,0.00015,2]
[330883060,1719895840052,-50462.0985667,0.00015,2]
[330883061,1719895840088,-318.61350362,0.00015,2]
[330883062,1719895840238,-88459.76516271,0.00015,2]
[330883063,1719895840352,-568.91867396,0.00015,2]
[330883064,1719895840364,-31212.5833153,0.00015,2]
[330883065,1719895840386,-943537.53371248,0.00015,2]
[330883066,1719895840397,-871798.22396294,0.00015,2]
[330883067,1719895840493,-703.36625395,0.00015,2]
[330883074,1719895843166,-244.0,0.00014849,2]
[330883075,1719895843175,-684750.18264915,0.00015,2]
[330883076,1719895843195,-552155.05734214,0.00015,2]
[330883077,1719895843303,-5513.42474827,0.00015,2]
[330883081,1719895845877,-209.7635483,0.00014999,2]
[330883082,1719895845886,-1429.8893299,0.00014999,2]
[330883083,1719895845913,-4489.85759959,0.00014999,2]
[330883084,1719895845922,-2038.64204528,0.00015,2]
[330883090,1719896516058,11138.10932706,0.00011199,2]
[330883091,1719896602443,1292.69851628,0.00011199,2]
[330883092,1719896618018,641.65100367,0.00011199,2]
[330883093,1719896805516,-155.06536284,0.0001123,2]
[330883094,1719896810786,641.65100367,0.00011199,2]
[330883095,1719896918298,641.65100367,0.00011199,2]
[330883096,1719896975317,301.52983708,0.00011199,2]
[330883097,1719896980996,621.60875247,0.00011199,2]
[330883098,1719896995303,641.65100367,0.00011199,2]
[330883099,1719897028321,660.33561149,0.00011199,2]
[330883112,1719897032081,-442.73703175,0.00011322,2]
[330883113,1719897032093,-397.42296825,0.00011322,2]
[330883114,1719897032103,-52.61410475,0.00012302,2]
[330883115,1719897032115,-102.77730041,0.00012302,2]
[330883116,1719897032125,-390.99125767,0.00012302,2]
[330883117,1719897032138,-381.05243418,0.00012302,2]
[330883118,1719897032148,-250.0,0.00012863,2]
[330883119,1719897032157,-258.09906126,0.00013026,2]
[330883120,1719897032174,-41.90093874,0.00013026,2]
[330883121,1719897032184,-15135.44254376,0.00013027,2]
[330883122,1719897032196,-18570.756,0.00013027,2]
[330883123,1719897032208,-13037.42092,0.00013027,2]
[330883124,1719897032219,-3256.38053624,0.00013027,2]
[330883125,1719897032229,-1000.0,0.00013202,2]
[330883126,1719897032238,-1052.67057692,0.00013266,2]
[330883127,1719897032250,-250.0,0.00013267,2]
[330883128,1719897032260,-200.0,0.000133,2]
[330883129,1719897032270,-133.66329004,0.00013472,2]
[330883130,1719897032284,-32.41212355,0.00013472,2]
[330883131,1719897032294,-1133.92751376,0.00013516,2]
[330883132,1719897032303,-690.47819463,0.00013543,2]
[330883133,1719897032313,-165.8750928,0.00013574,2]
[330883134,1719897032322,-840.16,0.00013585,2]
[330883135,1719897032332,-1123.81,0.00013699,5]
[330883136,1719897032341,-214.82,0.00013699,2]
[330883137,1719897032352,-1013.04,0.00013699,2]
[330883138,1719897032362,-10087.9988,0.000137,2]
[330883139,1719897032373,-167.68,0.0001374,2]
[330883140,1719897032382,-175.188,0.00013799,2]
[330883141,1719897032392,-1219.29051641,0.00013799,2]
[330883142,1719897032404,-3545.53898359,0.00013799,2]
[330883143,1719897032414,-719.65774891,0.00013799,2]
[330883144,1719897032444,-562.23585109,0.00013799,2]
[330883145,1719897032453,-1000.0,0.00013799,2]
[330883146,1719897032462,-304.2285,0.00013799,2]
[330883147,1719897032471,-4519.29166964,0.00013799,2]
[330883148,1719897032482,-8258.64258884,0.00013799,2]
[330883149,1719897032491,-4317.45921055,0.000138,2]
[330883150,1719897032500,-2182.27505861,0.00013806,2]
[330883151,1719897032513,-1218.18704139,0.00013806,2]
[330883152,1719897032522,-1942.17105861,0.00013899,2]
[330883153,1719897032533,-37525.61374139,0.00013899,2]
[330883154,1719897032542,-100000.0,0.00013899,2]
[330883155,1719897032551,-74743.56560716,0.00013899,2]
[330883157,1719897032560,-197.50721345,0.00013989,2]
[330883159,1719897032570,-1000.0,0.00013999,2]
[330883160,1719897032580,-1000.0,0.00013999,2]
[330883161,1719897032591,-1000.0,0.00013999,2]
[330883162,1719897032602,-1000.0,0.00013999,2]
[330883163,1719897032613,-1000.0,0.00013999,2]
[330883164,1719897032623,-1000.0,0.00013999,2]
[330883165,1719897032632,-1098.01873342,0.00013999,2]
[330883166,1719897032642,-1903.03082168,0.00013999,2]
[330883167,1719897032652,-500.0,0.00014006,2]
[330883168,1719897032661,-500.0,0.00014006,2]
[330883169,1719897032673,-500.0,0.00014006,2]
[330883170,1719897032684,-1013.04,0.00014384,2]
[330883171,1719897032694,-264.56470044,0.00014393,2]
[330883172,1719897032704,-3071.06619753,0.00014499,2]
[330883173,1719897032715,-423.09670834,0.00014575,2]
[330883174,1719897032724,-400.62434463,0.0001461,2]
[330883175,1719897032734,-1066.7023934,0.000147,2]
[330883176,1719897032746,-320.0,0.00014742,2]
[330883177,1719897032756,-150.0,0.00014748,2]
[330883178,1719897032767,-12777.93425847,0.00014755,2]
[330883179,1719897032777,-150.0,0.00014755,2]
[330883180,1719897032787,-150.0,0.00014767,2]
[330883181,1719897032798,-150.0,0.00014814,2]
[330883182,1719897032809,-150.0,0.00014825,2]
[330883183,1719897032819,-74743.56560715,0.00014844,2]
[330883184,1719897032829,-150.62302,0.0001485,2]
[330883185,1719897032840,-3000.0,0.0001485,2]
[330883186,1719897032851,-1000.0,0.00014852,2]
[330883187,1719897032861,-172.85,0.0001486,2]
[330883188,1719897032871,-150.0,0.00014874,2]
[330883189,1719897032881,-500.0,0.00014879,2]
[330883190,1719897032891,-200.0,0.00014879,2]
[330883191,1719897032901,-500.0,0.0001488,2]
[330883192,1719897032911,-500.0,0.0001488,2]
[330883193,1719897032921,-200.0,0.0001488,2]
[330883194,1719897032931,-2201.0498595,0.00014899,2]
[330883195,1719897032941,-24640.726647,0.000149,2]
[330883196,1719897032950,-3664.96533814,0.000149,2]
[330883197,1719897032968,-181.12385849,0.000149,2]
[330883198,1719897032979,-187.75243948,0.000149,2]
[330883199,1719897032988,-179.13721,0.000149,2]
[330883200,1719897032997,-222.39746096,0.000149,2]
[330883201,1719897033007,-13846.29813744,0.000149,2]
[330883202,1719897033021,-22181.57714255,0.000149,2]
[330883203,1719897033032,-792.49141054,0.000149,2]
[330883204,1719897033041,-193.1682026,0.000149,2]
[330883205,1719897033051,-220.33,0.00014904,3]